[Event "Dalheimers Hus Rapid Open"]
[Site "Dalheimers Hus, Slottsskogsgatan 12, Gothenburg, Sweden"]
[Date "2024.04.14"]
[Round "6.2"]
[White "Olsson, William"]
[Black "Andreasson, Ingvar"]
[Result "1-0"]
[TimeControl "15 minutes + 5 seconds per move from move one."]
[WhiteTitle "FM"]
[WhiteFideId "1741721"]
[BlackFideId "1700294"]
[WhiteElo "2159"]
[BlackElo "2323"]

1. c4 {[%clk 00:15:07]} {[%emt 00:00:03]} c6 {[%clk 00:15:06]} {[%emt
00:00:04]} 2. Nf3 {[%clk 00:15:09]} {[%emt 00:00:04]} g6 {[%clk 00:15:00]}
{[%emt 00:00:11]} 3. Nc3 {[%clk 00:14:21]} {[%emt 00:00:53]} Bg7 {[%clk
00:15:00]} {[%emt 00:00:04]} 4. d4 {[%clk 00:14:24]} {[%emt 00:00:02]} Nf6
{[%clk 00:14:51]} {[%emt 00:00:14]} 5. e4 {[%clk 00:14:11]} {[%emt 00:00:18]}
d6 {[%clk 00:14:54]} {[%emt 00:00:03]} 6. g3 {[%clk 00:14:05]} {[%emt
00:00:11]} O-O {[%clk 00:14:29]} {[%emt 00:00:30]} 7. Bg2 {[%clk 00:14:08]}
{[%emt 00:00:02]} e5 {[%clk 00:13:49]} {[%emt 00:00:45]} 8. O-O {[%clk
00:14:04]} {[%emt 00:00:09]} exd4 {[%clk 00:13:24]} {[%emt 00:00:29]} 9. Nxd4
{[%clk 00:14:07]} {[%emt 00:00:02]} Re8 {[%clk 00:13:26]} {[%emt 00:00:04]} 10.
h3 {[%clk 00:13:50]} {[%emt 00:00:22]} Nbd7 {[%clk 00:12:51]} {[%emt 00:00:40]}
11. Be3 {[%clk 00:13:45]} {[%emt 00:00:09]} a5 {[%clk 00:12:31]} {[%emt
00:00:25]} 12. Qc2 {[%clk 00:13:29]} {[%emt 00:00:21]} Nc5 {[%clk 00:12:20]}
{[%emt 00:00:16]} 13. Rad1 {[%clk 00:13:04]} {[%emt 00:00:30]} Qe7 {[%clk
00:11:54]} {[%emt 00:00:32]} 14. Rfe1 {[%clk 00:13:07]} {[%emt 00:00:01]} h5
{[%clk 00:10:34]} {[%emt 00:01:24]} 15. Bf4 {[%clk 00:12:41]} {[%emt 00:00:32]}
Nfd7 {[%clk 00:10:38]} 16. b3 {[%clk 00:12:12]} {[%emt 00:00:35]} Ne5 {[%clk
00:10:17]} {[%emt 00:00:26]} 17. Bc1 {[%clk 00:11:54]} {[%emt 00:00:22]} a4
{[%clk 00:08:39]} {[%emt 00:01:43]} 18. f4 {[%clk 00:09:02]} {[%emt 00:02:58]}
axb3 {[%clk 00:08:41]} {[%emt 00:00:03]} 19. axb3 {[%clk 00:09:05]} {[%emt
00:00:02]} Ned7 {[%clk 00:08:44]} {[%emt 00:00:01]} 20. Nde2 {[%clk 00:08:24]}
{[%emt 00:00:47]} Nf6 {[%clk 00:06:49]} {[%emt 00:01:58]} 21. Nd4 {[%clk
00:08:16]} {[%emt 00:00:14]} Nfd7 {[%clk 00:06:45]} {[%emt 00:00:09]} 22. Be3
{[%clk 00:08:19]} {[%emt 00:00:02]} Nf8 {[%clk 00:06:20]} {[%emt 00:00:30]} 23.
Bf2 {[%clk 00:08:08]} {[%emt 00:00:15]} Nfe6 {[%clk 00:05:28]} {[%emt
00:00:59]} 24. Nde2 {[%clk 00:08:09]} {[%emt 00:00:04]} Qc7 {[%clk 00:04:40]}
{[%emt 00:00:52]} 25. b4 {[%clk 00:07:21]} {[%emt 00:00:53]} Nd7 {[%clk
00:04:34]} {[%emt 00:00:11]} 26. Qb3 {[%clk 00:06:20]} {[%emt 00:01:07]} h4
{[%clk 00:04:25]} {[%emt 00:00:14]} 27. g4 {[%clk 00:06:17]} {[%emt 00:00:08]}
g5 {[%clk 00:04:29]} 28. fxg5 {[%clk 00:06:01]} {[%emt 00:00:21]} Nxg5 {[%clk
00:03:20]} {[%emt 00:01:15]} 29. Bxh4 {[%clk 00:06:04]} Ne6 {[%clk 00:03:17]}
{[%emt 00:00:08]} 30. Bf2 {[%clk 00:05:19]} {[%emt 00:00:50]} Ne5 {[%clk
00:03:14]} {[%emt 00:00:08]} 31. Be3 {[%clk 00:04:40]} {[%emt 00:00:45]} Ng6
{[%clk 00:02:56]} {[%emt 00:00:23]} 32. Ng3 {[%clk 00:04:36]} {[%emt 00:00:08]}
Be5 {[%clk 00:02:28]} {[%emt 00:00:33]} 33. Nf5 {[%clk 00:04:34]} {[%emt
00:00:07]} Nef4 {[%clk 00:02:33]} 34. Bd4 {[%clk 00:04:08]} {[%emt 00:00:31]}
Bxf5 {[%clk 00:02:14]} {[%emt 00:00:23]} 35. Bxe5 {[%clk 00:03:42]} {[%emt
00:00:32]} Nxe5 {[%clk 00:01:37]} {[%emt 00:00:41]} 36. exf5 {[%clk 00:03:06]}
{[%emt 00:00:41]} Qb6+ {[%clk 00:01:14]} {[%emt 00:00:29]} 37. c5 {[%clk
00:02:04]} {[%emt 00:01:06]} dxc5 {[%clk 00:01:18]} 38. Na4 {[%clk 00:02:09]}
Rxa4 {[%clk 00:01:06]} {[%emt 00:00:17]} 39. Qxa4 {[%clk 00:02:13]} {[%emt
00:00:01]} c4+ {[%clk 00:01:11]} 40. Kf1 {[%clk 00:02:11]} {[%emt 00:00:05]}
Nfd3 {[%clk 00:00:39]} {[%emt 00:00:37]} 41. Re2 {[%clk 00:02:15]} {[%emt
00:00:02]} Qd4 {[%clk 00:00:42]} {[%emt 00:00:02]} 42. Qc2 {[%clk 00:02:02]}
{[%emt 00:00:18]} Qf4+ {[%clk 00:00:35]} {[%emt 00:00:12]} 43. Kg1 {[%clk
00:01:47]} {[%emt 00:00:20]} Qg3 {[%clk 00:00:33]} {[%emt 00:00:07]} 44. Kh1
{[%clk 00:01:49]} {[%emt 00:00:03]} Nf4 {[%clk 00:00:32]} {[%emt 00:00:06]} 45.
Qd2 {[%clk 00:01:20]} {[%emt 00:00:34]} Nxg2 {[%clk 00:00:26]} {[%emt
00:00:11]} 46. Rxg2 {[%clk 00:01:21]} {[%emt 00:00:03]} Qxh3+ {[%clk 00:00:30]}
{[%emt 00:00:02]} 47. Rh2 {[%clk 00:01:23]} {[%emt 00:00:03]} Qf3+ {[%clk
00:00:33]} {[%emt 00:00:02]} 48. Kg1 {[%clk 00:01:26]} {[%emt 00:00:02]} Nxg4
{[%clk 00:00:22]} {[%emt 00:00:16]} 49. Qg5+ {[%clk 00:01:28]} {[%emt
00:00:04]} 1-0

[Event "Dalheimers Hus Rapid Open"]
[Site "Dalheimers Hus, Slottsskogsgatan 12, Gothenburg, Sweden"]
[Date "2024.04.14"]
[Round "6.3"]
[White "Seo, Jung Min"]
[Black "Brzezinski, Adam"]
[Result "1-0"]
[TimeControl "15 minutes + 5 seconds per move from move one."]
[WhiteTitle "IM"]
[WhiteFideId "1734687"]
[BlackFideId "1710460"]
[WhiteElo "2450"]
[BlackElo "2111"]

1. e4 {[%clk 00:15:05]} {[%emt 00:03:13]} e6 {[%clk 00:15:07]} {[%emt
00:00:03]} 2. d4 {[%clk 00:15:13]} {[%emt 00:00:02]} d5 {[%clk 00:15:10]}
{[%emt 00:00:02]} 3. e5 {[%clk 00:15:14]} {[%emt 00:00:05]} c5 {[%clk
00:15:13]} {[%emt 00:00:02]} 4. c3 {[%clk 00:15:18]} Qb6 {[%clk 00:15:06]}
{[%emt 00:00:11]} 5. Nf3 {[%clk 00:15:21]} {[%emt 00:00:02]} Nc6 {[%clk
00:15:09]} {[%emt 00:00:02]} 6. a3 {[%clk 00:14:58]} {[%emt 00:00:28]} c4
{[%clk 00:15:12]} {[%emt 00:00:02]} 7. Nbd2 {[%clk 00:15:02]} Na5 {[%clk
00:15:16]} 8. h4 {[%clk 00:15:05]} {[%emt 00:00:02]} Bd7 {[%clk 00:15:17]}
{[%emt 00:00:03]} 9. g3 {[%clk 00:14:46]} {[%emt 00:00:25]} Ne7 {[%clk
00:14:41]} {[%emt 00:00:41]} 10. Rb1 {[%clk 00:14:06]} {[%emt 00:00:44]} Qc7
{[%clk 00:14:45]} {[%emt 00:00:02]} 11. Bh3 {[%clk 00:13:20]} {[%emt 00:00:52]}
h6 {[%clk 00:14:40]} {[%emt 00:00:09]} 12. Nf1 {[%clk 00:13:19]} {[%emt
00:00:06]} O-O-O {[%clk 00:14:17]} {[%emt 00:00:28]} 13. Bf4 {[%clk 00:13:07]}
{[%emt 00:00:17]} Kb8 {[%clk 00:13:46]} {[%emt 00:00:37]} 14. N3d2 {[%clk
00:12:36]} {[%emt 00:00:35]} Nc8 {[%clk 00:13:28]} {[%emt 00:00:23]} 15. Ne3
{[%clk 00:12:38]} {[%emt 00:00:03]} Nb6 {[%clk 00:13:15]} {[%emt 00:00:17]} 16.
h5 {[%clk 00:12:21]} {[%emt 00:00:22]} Be7 {[%clk 00:12:59]} {[%emt 00:00:21]}
17. Qe2 {[%clk 00:11:51]} {[%emt 00:00:36]} Ba4 {[%clk 00:12:25]} {[%emt
00:00:39]} 18. O-O {[%clk 00:11:37]} {[%emt 00:00:18]} Qc6 {[%clk 00:12:14]}
{[%emt 00:00:16]} 19. g4 {[%clk 00:11:29]} {[%emt 00:00:13]} Qe8 {[%clk
00:12:15]} {[%emt 00:00:04]} 20. Bg3 {[%clk 00:11:26]} {[%emt 00:00:09]} Qg8
{[%clk 00:11:22]} {[%emt 00:00:58]} 21. f4 {[%clk 00:11:24]} {[%emt 00:00:06]}
g6 {[%clk 00:11:08]} {[%emt 00:00:19]} 22. Kh2 {[%clk 00:11:08]} {[%emt
00:00:21]} gxh5 {[%clk 00:11:00]} {[%emt 00:00:14]} 23. gxh5 {[%clk 00:11:12]}
Qh7 {[%clk 00:10:39]} {[%emt 00:00:26]} 24. f5 {[%clk 00:11:16]} Bd7 {[%clk
00:09:52]} {[%emt 00:00:52]} 25. Nf3 {[%clk 00:08:17]} {[%emt 00:03:04]} Bg5
{[%clk 00:08:35]} {[%emt 00:01:21]} 26. Nxg5 {[%clk 00:07:35]} {[%emt
00:00:47]} hxg5 {[%clk 00:08:38]} {[%emt 00:00:01]} 27. Bg4 {[%clk 00:07:39]}
{[%emt 00:00:01]} Nc8 {[%clk 00:07:02]} {[%emt 00:01:42]} 28. Nxd5 {[%clk
00:06:22]} {[%emt 00:01:23]} exd5 {[%clk 00:06:54]} {[%emt 00:00:12]} 29. e6+
{[%clk 00:06:27]} Ka8 {[%clk 00:06:57]} {[%emt 00:00:02]} 30. exd7 {[%clk
00:06:22]} {[%emt 00:00:10]} Rxd7 {[%clk 00:06:02]} {[%emt 00:01:00]} 31. f6
{[%clk 00:06:25]} {[%emt 00:00:01]} Rdd8 {[%clk 00:06:06]} {[%emt 00:00:02]} 32.
Rbe1 {[%clk 00:06:13]} {[%emt 00:00:17]} Nc6 {[%clk 00:05:46]} {[%emt
00:00:25]} 33. Rf5 {[%clk 00:05:55]} {[%emt 00:00:23]} Nd6 {[%clk 00:03:14]}
{[%emt 00:02:36]} 34. Rxd5 {[%clk 00:05:39]} {[%emt 00:00:21]} Rde8 {[%clk
00:03:06]} {[%emt 00:00:14]} 35. Be5 {[%clk 00:05:15]} {[%emt 00:00:29]} Nf5
{[%clk 00:02:22]} {[%emt 00:00:47]} 36. Qe4 {[%clk 00:05:02]} {[%emt 00:00:19]}
Nh6 {[%clk 00:02:20]} {[%emt 00:00:07]} 37. Qxh7 {[%clk 00:04:59]} {[%emt
00:00:08]} Rxh7 {[%clk 00:01:56]} {[%emt 00:00:29]} 38. Bd1 {[%clk 00:04:44]}
{[%emt 00:00:21]} Ng8 {[%clk 00:01:46]} {[%emt 00:00:14]} 39. Rf1 {[%clk
00:04:36]} {[%emt 00:00:13]} a6 {[%clk 00:01:22]} {[%emt 00:00:30]} 40. a4
{[%clk 00:04:37]} {[%emt 00:00:04]} Ka7 {[%clk 00:01:25]} {[%emt 00:00:02]} 41.
Rc5 {[%clk 00:03:36]} {[%emt 00:01:06]} Rh6 {[%clk 00:01:10]} {[%emt 00:00:19]}
42. Rf5 {[%clk 00:03:31]} {[%emt 00:00:10]} Re6 {[%clk 00:00:53]} {[%emt
00:00:22]} 43. Rxg5 {[%clk 00:03:07]} {[%emt 00:00:29]} Nxf6 {[%clk 00:00:56]}
{[%emt 00:00:02]} 44. Bxf6 {[%clk 00:02:28]} {[%emt 00:00:44]} Rexf6 {[%clk
00:00:55]} {[%emt 00:00:06]} 45. Rxc4 {[%clk 00:02:23]} {[%emt 00:00:11]} Rf2+
{[%clk 00:00:56]} {[%emt 00:00:03]} 46. Rg2 {[%clk 00:02:27]} {[%emt 00:00:01]}
Rf1 {[%clk 00:00:37]} {[%emt 00:00:24]} 47. Be2 {[%clk 00:02:22]} {[%emt
00:00:09]} Re1 {[%clk 00:00:38]} {[%emt 00:00:06]} 48. d5 {[%clk 00:02:10]}
{[%emt 00:00:17]} Ne5 {[%clk 00:00:25]} {[%emt 00:00:18]} 49. Re4 {[%clk
00:02:09]} {[%emt 00:00:04]} f6 {[%clk 00:00:19]} {[%emt 00:00:13]} 50. b4
{[%clk 00:02:00]} {[%emt 00:00:13]} Kb6 {[%clk 00:00:22]} {[%emt 00:00:02]} 51.
c4 {[%clk 00:01:59]} {[%emt 00:00:07]} Nf7 {[%clk 00:00:10]} {[%emt 00:00:16]}
52. Re6+ {[%clk 00:01:54]} {[%emt 00:00:10]} Ka7 {[%clk 00:00:13]} {[%emt
00:00:03]} 53. Rg6 {[%clk 00:01:12]} {[%emt 00:00:47]} Rh7 {[%clk 00:00:06]}
{[%emt 00:00:11]} 54. Rgxf6 {[%clk 00:01:12]} {[%emt 00:00:05]} Ng5 {[%clk
00:00:09]} {[%emt 00:00:02]} 55. Re5 {[%clk 00:00:49]} {[%emt 00:00:29]} Rxh5+
{[%clk 00:00:11]} {[%emt 00:00:02]} 56. Bxh5 {[%clk 00:00:53]} Rxe5 {[%clk
00:00:15]} {[%emt 00:00:01]} 57. Bg4 {[%clk 00:00:17]} {[%emt 00:00:41]} Re1
{[%clk 00:00:11]} {[%emt 00:00:10]} 58. Rg6 {[%clk 00:00:15]} {[%emt 00:00:06]}
Nf7 {[%clk 00:00:10]} {[%emt 00:00:07]} 59. Rg7 {[%clk 00:00:08]} {[%emt
00:00:11]} Ne5 {[%clk 00:00:13]} {[%emt 00:00:02]} 60. Bc8 {[%clk 00:00:11]}
{[%emt 00:00:02]} Rc1 {[%clk 00:00:11]} {[%emt 00:00:07]} 61. c5 {[%clk
00:00:14]} {[%emt 00:00:03]} Rc4 {[%clk 00:00:14]} {[%emt 00:00:01]} 62. Rxb7+
{[%clk 00:00:16]} {[%emt 00:00:03]} Ka8 {[%clk 00:00:19]} 63. d6 {[%clk
00:00:18]} {[%emt 00:00:03]} Nc6 {[%clk 00:00:19]} {[%emt 00:00:04]} 64. b5
{[%clk 00:00:15]} {[%emt 00:00:08]} axb5 {[%clk 00:00:22]} {[%emt 00:00:02]} 65.
axb5 {[%clk 00:00:20]} Ne5 {[%clk 00:00:20]} {[%emt 00:00:06]} 66. Rc7 {[%clk
00:00:12]} {[%emt 00:00:13]} Kb8 {[%clk 00:00:23]} {[%emt 00:00:02]} 67. b6
{[%emt 00:00:02]} Rh4+ {[%clk 00:00:17]} {[%emt 00:00:10]} 68. Kg3 {[%clk
00:00:19]} {[%emt 00:00:02]} Rh8 {[%clk 00:00:21]} 69. Bf5 {[%clk 00:00:21]}
{[%emt 00:00:04]} Rf8 {[%clk 00:00:20]} {[%emt 00:00:06]} 70. d7 {[%clk
00:00:16]} {[%emt 00:00:09]} 1-0

[Event "Dalheimers Hus Rapid Open"]
[Site "Dalheimers Hus, Slottsskogsgatan 12, Gothenburg, Sweden"]
[Date "2024.04.14"]
[Round "6.4"]
[White "Hellers, Ferdinand"]
[Black "Borvander, Tom"]
[Result "1-0"]
[TimeControl "15 minutes + 5 seconds per move from move one."]
[WhiteTitle "GM"]
[WhiteFideId "1700022"]
[BlackFideId "1707388"]
[WhiteElo "2410"]
[BlackElo "2081"]

1. e4 {[%clk 00:15:07]} {[%emt 00:00:02]} e5 {[%clk 00:15:09]} {[%emt
00:00:03]} 2. Nf3 {[%clk 00:15:10]} {[%emt 00:00:02]} Nc6 {[%clk 00:15:12]}
{[%emt 00:00:02]} 3. Bb5 {[%clk 00:15:12]} {[%emt 00:00:02]} a6 {[%clk
00:15:15]} {[%emt 00:00:03]} 4. Ba4 {[%clk 00:15:16]} Nf6 {[%clk 00:15:18]}
{[%emt 00:00:02]} 5. O-O {[%clk 00:15:17]} {[%emt 00:00:03]} b5 {[%clk
00:15:20]} {[%emt 00:00:03]} 6. Bb3 {[%clk 00:15:20]} {[%emt 00:00:02]} Bc5
{[%clk 00:15:23]} {[%emt 00:00:03]} 7. c3 {[%clk 00:15:04]} {[%emt 00:00:20]}
d6 {[%clk 00:15:26]} {[%emt 00:00:02]} 8. d4 {[%clk 00:15:07]} {[%emt
00:00:02]} Bb6 {[%clk 00:15:29]} {[%emt 00:00:03]} 9. Be3 {[%clk 00:15:03]}
{[%emt 00:00:08]} O-O {[%clk 00:15:12]} {[%emt 00:00:23]} 10. Nbd2 {[%clk
00:15:02]} {[%emt 00:00:05]} h6 {[%clk 00:15:04]} {[%emt 00:00:13]} 11. h3
{[%clk 00:15:03]} {[%emt 00:00:04]} Re8 {[%clk 00:14:51]} {[%emt 00:00:18]} 12.
Re1 {[%clk 00:14:19]} {[%emt 00:00:50]} Bb7 {[%clk 00:14:44]} {[%emt 00:00:12]}
13. d5 {[%clk 00:14:03]} {[%emt 00:00:21]} Ne7 {[%clk 00:14:46]} {[%emt
00:00:03]} 14. Bxb6 {[%clk 00:14:05]} {[%emt 00:00:02]} cxb6 {[%clk 00:14:50]}
{[%emt 00:00:02]} 15. a4 {[%clk 00:13:22]} {[%emt 00:00:48]} bxa4 {[%clk
00:14:48]} {[%emt 00:00:08]} 16. Bxa4 {[%clk 00:13:24]} {[%emt 00:00:02]} Rf8
{[%clk 00:14:27]} {[%emt 00:00:26]} 17. Bc2 {[%clk 00:13:11]} {[%emt 00:00:18]}
Ng6 {[%clk 00:14:20]} {[%emt 00:00:12]} 18. Bd3 {[%clk 00:12:08]} {[%emt
00:01:08]} Nd7 {[%clk 00:13:07]} {[%emt 00:01:19]} 19. b4 {[%clk 00:09:03]}
{[%emt 00:03:10]} Qc7 {[%clk 00:12:17]} {[%emt 00:00:55]} 20. Rc1 {[%clk
00:08:47]} {[%emt 00:00:21]} a5 {[%clk 00:10:41]} {[%emt 00:01:43]} 21. g3
{[%clk 00:07:26]} {[%emt 00:01:24]} Ba6 {[%clk 00:10:33]} {[%emt 00:00:14]} 22.
Bxa6 {[%clk 00:07:00]} {[%emt 00:00:32]} Rxa6 {[%clk 00:10:37]} 23. Qa4 {[%clk
00:05:36]} {[%emt 00:01:28]} Rfa8 {[%clk 00:10:29]} {[%emt 00:00:12]} 24. Qc6
{[%clk 00:04:51]} {[%emt 00:00:51]} Rc8 {[%clk 00:09:50]} {[%emt 00:00:43]} 25.
Nc4 {[%clk 00:03:53]} {[%emt 00:01:04]} Ra7 {[%clk 00:07:19]} {[%emt 00:02:36]}
26. Qxc7 {[%clk 00:03:28]} {[%emt 00:00:30]} Raxc7 {[%clk 00:06:44]} {[%emt
00:00:40]} 27. Nxd6 {[%clk 00:03:28]} {[%emt 00:00:05]} Ra8 {[%clk 00:06:44]}
{[%emt 00:00:05]} 28. Nb5 {[%clk 00:03:23]} {[%emt 00:00:09]} Rcc8 {[%clk
00:06:38]} {[%emt 00:00:12]} 29. Nd2 {[%clk 00:03:13]} {[%emt 00:00:14]} axb4
{[%clk 00:06:26]} {[%emt 00:00:17]} 30. cxb4 {[%clk 00:03:16]} {[%emt
00:00:03]} Rxc1 {[%clk 00:06:11]} {[%emt 00:00:20]} 31. Rxc1 {[%clk 00:03:19]}
{[%emt 00:00:01]} Ra2 {[%clk 00:06:11]} {[%emt 00:00:05]} 32. Nc4 {[%clk
00:03:13]} {[%emt 00:00:12]} Nf6 {[%clk 00:05:50]} {[%emt 00:00:26]} 33. Nc3
{[%clk 00:03:07]} {[%emt 00:00:10]} Ra6 {[%clk 00:05:44]} {[%emt 00:00:12]} 34.
b5 {[%clk 00:03:04]} {[%emt 00:00:08]} Ra7 {[%clk 00:05:17]} {[%emt 00:00:31]}
35. Nxb6 {[%clk 00:03:03]} {[%emt 00:00:06]} Rc7 {[%clk 00:05:05]} {[%emt
00:00:18]} 36. Nba4 {[%clk 00:02:47]} {[%emt 00:00:21]} Nxe4 {[%clk 00:05:01]}
{[%emt 00:00:09]} 37. b6 {[%clk 00:02:49]} {[%emt 00:00:03]} 1-0

[Event "Dalheimers Hus Rapid Open"]
[Site "Dalheimers Hus, Slottsskogsgatan 12, Gothenburg, Sweden"]
[Date "2024.04.14"]
[Round "6.5"]
[White "Rydstrom, Tom"]
[Black "Sigurgeirson, Brjann"]
[Result "1/2-1/2"]
[TimeControl "15 minutes + 5 seconds per move from move one."]
[WhiteTitle "FM"]
[WhiteFideId "1714830"]
[BlackFideId "1712497"]
[WhiteElo "2313"]
[BlackElo "2103"]

1. e4 {[%clk 00:15:08]} {[%emt 00:00:02]} c5 {[%clk 00:15:09]} {[%emt
00:00:01]} 2. Nf3 {[%clk 00:15:11]} {[%emt 00:00:02]} d6 {[%clk 00:15:13]} 3.
d4 {[%clk 00:15:16]} cxd4 {[%clk 00:15:17]} {[%emt 00:00:01]} 4. Nxd4 {[%clk
00:15:20]} Nf6 {[%clk 00:15:20]} {[%emt 00:00:02]} 5. Nc3 {[%clk 00:15:23]}
{[%emt 00:00:01]} g6 {[%clk 00:15:24]} 6. Be3 {[%clk 00:15:22]} {[%emt
00:00:06]} Bg7 {[%clk 00:15:28]} {[%emt 00:00:02]} 7. f3 {[%clk 00:15:22]}
{[%emt 00:00:05]} Nc6 {[%clk 00:15:30]} {[%emt 00:00:03]} 8. Bc4 {[%clk
00:15:17]} {[%emt 00:00:10]} Qb6 {[%clk 00:15:32]} {[%emt 00:00:02]} 9. Nf5
{[%clk 00:14:15]} {[%emt 00:01:07]} Qxb2 {[%clk 00:15:19]} {[%emt 00:00:19]} 10.
Nxg7+ {[%clk 00:14:18]} {[%emt 00:00:02]} Kf8 {[%clk 00:15:20]} {[%emt
00:00:03]} 11. Nd5 {[%clk 00:14:02]} {[%emt 00:00:21]} Kxg7 {[%clk 00:15:08]}
{[%emt 00:00:18]} 12. O-O {[%clk 00:13:28]} {[%emt 00:00:39]} Be6 {[%clk
00:12:17]} {[%emt 00:02:56]} 13. Rb1 {[%clk 00:12:31]} {[%emt 00:01:02]} Qa3
{[%clk 00:11:55]} {[%emt 00:00:25]} 14. Qd2 {[%clk 00:12:33]} {[%emt 00:00:05]}
Rhc8 {[%clk 00:11:00]} {[%emt 00:01:00]} 15. Bb3 {[%clk 00:05:46]} {[%emt
00:06:52]} Bxd5 {[%clk 00:09:25]} {[%emt 00:01:40]} 16. exd5 {[%clk 00:05:46]}
{[%emt 00:00:05]} Ne5 {[%clk 00:09:18]} {[%emt 00:00:11]} 17. Rfe1 {[%clk
00:05:42]} {[%emt 00:00:09]} a5 {[%clk 00:08:31]} {[%emt 00:00:53]} 18. Bd4
{[%clk 00:03:22]} {[%emt 00:02:24]} a4 {[%clk 00:08:07]} {[%emt 00:00:30]} 19.
f4 {[%clk 00:03:26]} axb3 {[%clk 00:06:58]} {[%emt 00:01:14]} 20. fxe5 {[%clk
00:03:20]} {[%emt 00:00:11]} dxe5 {[%clk 00:07:00]} {[%emt 00:00:02]} 21. Rxb3
{[%clk 00:01:47]} {[%emt 00:01:39]} Qxa2 {[%clk 00:06:46]} {[%emt 00:00:19]} 22.
Rb2 {[%clk 00:01:47]} {[%emt 00:00:05]} Qxd5 {[%clk 00:03:18]} {[%emt
00:03:33]} 23. Be3 {[%clk 00:01:40]} {[%emt 00:00:11]} Qxd2 {[%clk 00:02:20]}
{[%emt 00:01:04]} 24. Bxd2 {[%clk 00:01:44]} {[%emt 00:00:01]} e4 {[%clk
00:02:16]} {[%emt 00:00:09]} 25. h3 {[%clk 00:01:42]} {[%emt 00:00:06]} Rc7
{[%clk 00:02:14]} {[%emt 00:00:08]} 26. Bf4 {[%clk 00:01:44]} {[%emt 00:00:03]}
Rd7 {[%clk 00:02:15]} {[%emt 00:00:04]} 27. Be5 {[%clk 00:01:48]} Rc8 {[%clk
00:02:00]} {[%emt 00:00:20]} 28. Rxe4 {[%clk 00:01:47]} {[%emt 00:00:06]} Rd1+
{[%clk 00:01:39]} {[%emt 00:00:26]} 29. Kh2 {[%clk 00:01:50]} {[%emt 00:00:02]}
Rd2 {[%clk 00:01:43]} 30. Rxb7 {[%clk 00:01:17]} {[%emt 00:00:37]} Rcxc2 {[%clk
00:01:47]} {[%emt 00:00:02]} 31. Rxe7 {[%clk 00:01:04]} {[%emt 00:00:17]} Rxg2+
{[%clk 00:01:40]} {[%emt 00:00:13]} 32. Kh1 {[%clk 00:01:08]} Rgf2 {[%clk
00:01:28]} {[%emt 00:00:17]} 33. Re1 {[%clk 00:00:58]} {[%emt 00:00:16]} g5
{[%clk 00:00:55]} {[%emt 00:00:39]} 34. h4 {[%clk 00:00:33]} {[%emt 00:00:30]}
Kg6 {[%clk 00:00:19]} {[%emt 00:00:41]} 35. hxg5 {[%clk 00:00:36]} {[%emt
00:00:01]} Kxg5 {[%clk 00:00:23]} {[%emt 00:00:01]} 36. Rxf7 {[%clk 00:00:27]}
{[%emt 00:00:15]} Ng4 {[%clk 00:00:14]} {[%emt 00:00:15]} 37. Rg7+ {[%clk
00:00:23]} {[%emt 00:00:08]} Kf5 {[%clk 00:00:16]} {[%emt 00:00:03]} 38. Rf7+
{[%clk 00:00:15]} {[%emt 00:00:13]} Kg5 {[%clk 00:00:15]} {[%emt 00:00:06]} 39.
Rg7+ {[%clk 00:00:19]} Kf5 {[%clk 00:00:12]} {[%emt 00:00:09]} 40. Rxh7 {[%clk
00:00:22]} Nxe5 {[%clk 00:00:10]} {[%emt 00:00:06]} 41. Rh5+ {[%clk 00:00:27]}
Kf4 {[%clk 00:00:10]} {[%emt 00:00:05]} 42. Rhxe5 {[%clk 00:00:28]} {[%emt
00:00:03]} Rh2+ {[%clk 00:00:14]} {[%emt 00:00:02]} 43. Kg1 {[%clk 00:00:33]}
Rcg2+ {[%clk 00:00:17]} 44. Kf1 {[%clk 00:00:37]} Rf2+ {[%clk 00:00:17]} {[%emt
00:00:06]} 45. Kg1 {[%clk 00:00:41]} 1/2-1/2